bitfinex/quotes_SOLUSD_20241010
["timestamp","ask_amount","ask_price","bid_price","bid_amount"]
[1728540556286,7.1195,140.46,140.43,1.42388563]
[1728540557101,3.73731651,140.48,140.41,24.9261]
[1728540557275,35.97939928,140.5,140.41,17.8043]
[1728540557276,7.1201,140.45,140.41,17.8043]
[1728540557468,7.1205,140.44,140.41,17.8043]
[1728540557666,7.1205,140.44,140.4,22.3901]
[1728540560600,7.1201,140.45,140.4,22.3901]
[1728540561168,7.1201,140.45,140.4,15.2678]
[1728540561387,7.1201,140.45,140.41,7.1219]
[1728540562698,7.1201,140.45,140.4,40.1958]
[1728540563490,7.1201,140.45,140.41,7.1218]
[1728540565576,7.1195,140.46,140.41,7.1218]
[1728540565895,7.119,140.47,140.42,7.1211]
[1728540567278,29.0309,140.49,140.42,7.1211]
[1728540567479,7.1195,140.46,140.42,7.1211]
[1728540569782,23.902374,140.48,140.4,33.0735]
[1728540569979,7.1209,140.43,140.4,33.0735]
[1728540570409,23.902374,140.48,140.4,33.0735]
[1728540570576,7.1205,140.44,140.4,40.1959]
[1728540571802,7.1195,140.46,140.42,7.1214]
[1728540579283,7.119,140.47,140.43,7.1209]
[1728540580903,7.1197,140.46,140.42,17.8032]
[1728540581283,7.1191,140.47,140.42,24.9245]
[1728540585202,7.1195,140.46,140.42,24.9245]
[1728540585405,7.12,140.45,140.42,17.8032]
[1728540587313,7.1195,140.46,140.42,17.8032]
[1728540589213,7.1195,140.46,140.42,17.8032]
[1728540589419,7.1195,140.46,140.42,24.9245]
[1728540589994,7.1189,140.47,140.42,24.9245]
[1728540590908,7.1189,140.47,140.43,7.1208]
[1728540591416,17.794,140.5,140.43,7.1208]
[1728540591417,7.1185,140.48,140.43,7.1208]
[1728540593711,7.1185,140.48,140.44,8.54407474]
[1728540593909,7.118,140.49,140.43,70.0]
[1728540594109,7.118,140.49,140.45,7.1199]
[1728540595009,44.027864,140.51,140.42,17.8032]
[1728540595217,7.1187,140.48,140.43,7.1206]
[1728540595997,44.027864,140.51,140.42,17.8032]
[1728540596191,7.1183,140.49,140.44,7.12]
[1728540597301,7.1183,140.49,140.45,7.1199]
[1728540600206,7.1183,140.49,140.44,23.1555]
[1728540600905,7.1184,140.48,140.44,23.1555]
[1728540601220,7.119,140.47,140.44,16.0352]
[1728540601721,41.695274,140.51,140.42,24.9245]
[1728540601904,7.1195,140.46,140.42,17.8032]
[1728540602105,7.1195,140.46,140.42,24.9244]
[1728540602409,7.119,140.47,140.42,24.9244]
[1728540603007,7.119,140.47,140.43,7.1208]
[1728540603515,7.1188,140.48,140.43,7.1208]
[1728540606104,7.1193,140.47,140.42,24.9245]
[1728540612914,7.1193,140.47,140.43,7.1209]
[1728540613326,7.1186,140.48,140.44,7.1204]
[1728540618229,7.1186,140.48,140.42,17.8032]
[1728540618422,7.1186,140.48,140.43,7.1209]
[1728540618809,7.119,140.47,140.43,7.1209]
[1728540620730,7.1196,140.46,140.42,17.8032]
[1728540621028,7.1196,140.46,140.42,24.9245]
[1728540628415,7.119,140.47,140.42,24.9245]
[1728540631729,23.776884,140.5,140.42,24.9245]
[1728540633117,7.1193,140.47,140.42,24.9245]
[1728540633720,7.1193,140.47,140.43,7.1206]
[1728540634042,7.1193,140.47,140.44,1.4238118]
[1728540634340,7.1193,140.47,140.43,7.1206]
[1728540634726,25.3560232,140.51,140.42,17.8032]
[1728540634928,7.1184,140.48,140.44,7.1203]
[1728540635641,17.7929,140.51,140.44,7.1203]
[1728540635847,7.1179,140.49,140.44,7.1203]
[1728540638551,7.1186,140.48,140.44,7.1203]
[1728540639045,7.118,140.49,140.44,7.1203]
[1728540640232,7.1186,140.48,140.44,7.1203]
[1728540641238,7.1186,140.48,140.42,17.8032]
[1728540641454,7.1191,140.47,140.43,7.1208]
[1728540643830,27.76518051,140.5,140.42,17.8032]
[1728540644030,0.12549,140.48,140.42,17.8032]
[1728540645430,7.12,140.45,140.42,17.8032]
[1728540647059,7.12,140.45,140.41,17.14605372]
[1728540650258,7.12,140.45,140.41,24.26785372]
[1728540657460,23.73731651,140.48,140.42,1.4241195]
[1728540657656,7.1184,140.48,140.43,7.1204]
[1728540657861,7.1184,140.48,140.44,8.5441972]
[1728540658754,7.1184,140.48,140.43,7.1208]
[1728540659948,7.1184,140.48,140.44,1.42382982]
[1728540660339,7.1184,140.48,140.43,7.1208]
[1728540661666,7.119,140.47,140.43,7.1208]
[1728540663662,3.73731651,140.49,140.44,1.42385876]
[1728540663867,3.73731651,140.5,140.46,7.119]
[1728540664080,3.73731651,140.52,140.47,8.5423501]
[1728540664247,3.73731651,140.53,140.49,7.1179]
[1728540664450,10.85311651,140.54,140.5,1.42330957]
[1728540664671,10.85311651,140.54,140.48,7.1179]
[1728540664672,7.1158,140.54,140.48,7.1179]
[1728540665957,7.1161,140.53,140.48,7.1179]
[1728540668279,7.1154,140.54,140.49,7.1174]
[1728540669079,7.1154,140.54,140.5,1.42328146]
[1728540669371,7.1154,140.54,140.5,8.54058146]
[1728540669855,7.1154,140.54,140.5,7.1173]
[1728540670275,14.97251651,140.57,140.5,7.1173]
[1728540670447,7.115,140.55,140.5,7.1173]
[1728540672072,7.115,140.55,140.51,7.1168]
[1728540672275,7.1145,140.56,140.51,7.1168]
[1728540672572,7.1145,140.56,140.5,15.1497]
[1728540672770,18.6719378,140.6,140.5,15.1497]
[1728540672771,7.1139,140.57,140.52,7.1163]
[1728540673777,7.1145,140.56,140.52,7.1163]
[1728540674669,7.1135,140.58,140.53,7.1158]
[1728540675372,7.113,140.59,140.54,7.1153]
[1728540675563,7.1134,140.58,140.54,7.1153]
[1728540677254,7.1134,140.58,140.53,17.7891]
[1728540677459,7.1134,140.58,140.53,24.9049]
[1728540679684,20.0,140.59,140.51,13.5836]
[1728540679865,7.1145,140.56,140.51,13.5836]
[1728540680259,7.1148,140.56,140.51,6.4668]
[1728540680459,7.1148,140.56,140.51,13.5836]
[1728540680671,37.7831,140.59,140.52,7.1163]
[1728540680977,7.114,140.57,140.52,7.1163]
[1728540682976,7.1145,140.56,140.52,7.1163]
[1728540683193,7.1145,140.56,140.51,13.5836]
[1728540683689,7.1149,140.55,140.51,6.4668]
[1728540683875,7.1149,140.55,140.5,40.06]
[1728540684076,7.1149,140.55,140.51,7.1167]
[1728540684281,24.027864,140.58,140.51,7.1167]
[1728540684592,7.1145,140.56,140.51,7.1167]
[1728540686278,7.1145,140.56,140.52,7.1163]
[1728540687774,7.115,140.55,140.5,40.0598]
[1728540688091,7.115,140.55,140.5,32.9428]
[1728540688880,7.1145,140.56,140.51,1.42310546]
[1728540689082,7.1145,140.56,140.5,32.9428]
[1728540689577,7.114,140.57,140.52,7.1163]
[1728540690774,7.114,140.57,140.5,32.9428]
[1728540691089,7.114,140.57,140.52,7.1163]
[1728540691289,7.114,140.57,140.53,1.4229705]
[1728540691993,7.114,140.57,140.52,7.1163]
[1728540693497,7.1145,140.56,140.52,7.1163]
[1728540693794,11.2352,140.59,140.5,17.7931]
[1728540694093,44.027864,140.58,140.48,6.619]
[1728540694304,7.1154,140.54,140.49,7.1178]
[1728540694502,7.1154,140.54,140.48,6.619]
[1728540694796,7.115,140.55,140.49,17.7941]
[1728540695000,7.115,140.55,140.51,7.1168]
[1728540695612,25.21782343,140.6,140.52,15.3652]
[1728540695796,7.1141,140.57,140.53,7.1158]
[1728540698699,7.1134,140.58,140.53,7.1158]
[1728540699293,7.1134,140.58,140.52,15.3652]
[1728540699605,7.1129,140.59,140.54,7.1153]
[1728540701283,7.1133,140.58,140.54,7.1153]
[1728540701803,7.1133,140.58,140.53,17.7891]
[1728540701804,7.1133,140.58,140.53,24.9048]
[1728540702212,7.43603001,140.61,140.53,17.7891]
[1728540702388,7.1129,140.59,140.54,7.115]
[1728540706989,7.1133,140.58,140.54,7.115]
[1728540707490,7.1139,140.57,140.53,23.9576]
[1728540707915,7.114,140.57,140.53,6.1685]
[1728540708912,7.1134,140.58,140.53,13.2841]
[1728540714810,7.1134,140.58,140.53,6.1685]
[1728540715005,7.1134,140.58,140.54,8.53795359]
[1728540715204,7.1129,140.59,140.55,7.1148]
[1728540715405,7.1129,140.59,140.56,1.4227232]
[1728540715607,7.1129,140.59,140.55,7.1148]
[1728540715793,7.1129,140.59,140.56,1.42273307]
[1728540715988,7.1129,140.59,140.55,7.1148]
[1728540716194,7.1129,140.59,140.53,6.1685]
[1728540716418,7.1129,140.59,140.55,1.42273377]
[1728540716604,7.1129,140.59,140.54,7.1152]
[1728540720224,7.1129,140.59,140.55,8.53750687]
[1728540720410,7.1125,140.6,140.56,7.1143]
[1728540720609,7.1125,140.6,140.57,1.42256939]
[1728540721307,7.1125,140.6,140.55,7.1147]
[1728540721624,24.027864,140.61,140.53,6.1685]
[1728540722514,7.1133,140.59,140.53,13.2843]
[1728540722815,7.1133,140.59,140.53,93.9577]
[1728540723000,7.1133,140.59,140.53,23.9577]
[1728540723198,7.1134,140.58,140.54,7.1152]
[1728540725026,7.113,140.59,140.54,7.1152]
[1728540726919,7.1135,140.58,140.54,7.1152]
[1728540729423,0.12549,140.61,140.54,7.1152]
[1728540729730,7.113,140.59,140.54,7.1152]
[1728540735031,7.1134,140.58,140.53,23.9577]
[1728540735224,7.1134,140.58,140.54,7.1153]
[1728540740409,0.12549,140.61,140.53,23.9577]
[1728540740633,7.1139,140.57,140.53,31.0735]
[1728540741418,7.1134,140.58,140.54,7.1154]
[1728540742234,7.113,140.59,140.55,7.1148]
[1728540746423,7.1134,140.58,140.54,7.1154]
[1728540747915,7.1134,140.58,140.53,31.0734]
[1728540748412,24.027864,140.61,140.54,7.115]
[1728540749123,7.1142,140.57,140.53,23.9577]
[1728540749318,7.1142,140.57,140.53,31.0735]
[1728540749721,27.74998543,140.61,140.53,31.0735]
[1728540749945,7.1135,140.58,140.53,31.0735]
[1728540754415,7.1135,140.58,140.54,7.1153]
[1728540754616,7.1129,140.59,140.54,7.1153]
[1728540757948,7.1129,140.59,140.55,7.1147]
[1728540758543,7.1125,140.6,140.55,7.1147]
[1728540759118,3.84761143,140.61,140.55,7.1147]
[1728540759432,7.113,140.59,140.55,7.1147]
[1728540762442,7.23739,140.61,140.56,7.1139]
[1728540762651,7.1119,140.61,140.56,7.1139]
[1728540763031,7.1119,140.61,140.57,7.1137]
[1728540763652,7.1114,140.62,140.57,7.1137]
[1728540763833,7.1114,140.62,140.58,7.1132]
[1728540764348,7.1114,140.62,140.56,16.94699444]
[1728540764525,7.1114,140.62,140.58,7.1132]
[1728540765739,7.1109,140.63,140.58,7.1132]
[1728540768251,7.1109,140.63,140.59,7.1127]
[1728540769451,7.1109,140.63,140.6,1.42230261]
[1728540769754,7.1109,140.63,140.59,7.1127]
[1728540770256,15.08281143,140.66,140.59,7.1127]
[1728540770548,7.1104,140.64,140.59,7.1127]
[1728540775145,7.1104,140.64,140.6,7.1123]
[1728540775545,0.12549,140.66,140.57,24.4144]
[1728540775748,7.1125,140.6,140.57,6.6306]
[1728540775962,7.112,140.61,140.57,13.7444]
[1728540777157,0.25098,140.65,140.57,6.6306]
[1728540777372,7.1109,140.63,140.58,7.113]
[1728540780945,7.1109,140.63,140.57,6.6306]
[1728540781271,7.1103,140.65,140.6,7.1122]
[1728540781873,7.1104,140.64,140.6,7.1122]
[1728540782166,7.1104,140.64,140.58,17.7829]
[1728540782167,7.1104,140.64,140.59,7.1127]
[1728540787258,7.1104,140.64,140.6,7.1122]
[1728540789364,7.1102,140.65,140.6,7.1122]
[1728540789950,7.1108,140.63,140.58,17.7829]
[1728540790151,7.1108,140.63,140.59,7.1127]
[1728540790555,7.1108,140.63,140.58,24.8961]
[1728540790760,24.027864,140.66,140.58,24.8961]
[1728540791072,7.1115,140.62,140.58,24.8961]
[1728540791992,24.027864,140.66,140.58,24.8961]
[1728540792153,7.1109,140.63,140.58,24.8961]
[1728540796966,24.027864,140.66,140.58,17.7829]
[1728540797176,0.12549,140.64,140.58,17.7829]
[1728540797677,7.1108,140.63,140.59,7.1127]
[1728540805375,7.112,140.61,140.57,13.7444]
[1728540805593,7.1114,140.62,140.57,6.6306]
[1728540805757,7.1114,140.62,140.58,7.1133]
[1728540811982,17.90089,140.65,140.57,24.4148]
[1728540812185,0.12549,140.64,140.57,31.5286]
[1728540812491,7.1115,140.62,140.58,7.1132]
[1728540813290,7.1109,140.63,140.58,7.1132]
[1728540813984,7.1109,140.63,140.59,7.1127]
[1728540818483,7.1104,140.64,140.6,7.1123]
[1728540819664,23.776884,140.66,140.6,7.1123]
[1728540819884,7.1099,140.65,140.6,7.1123]
[1728540820372,7.1105,140.64,140.6,7.1123]
[1728540821295,7.1099,140.65,140.6,7.1123]
[1728540821794,7.1099,140.65,140.59,24.8942]
[1728540822769,7.1104,140.64,140.59,24.8942]
[1728540824298,24.027864,140.66,140.59,24.8942]
[1728540824474,7.1099,140.65,140.59,24.8942]
[1728540831707,10.95701143,140.66,140.6,7.1119]
[1728540833259,10.95701143,140.66,140.57,6.6306]
[1728540833260,7.1112,140.63,140.57,13.7444]
[1728540833500,7.1112,140.63,140.57,6.6306]
[1728540833707,7.23589,140.64,140.57,6.6306]
[1728540834781,3.72212143,140.65,140.57,6.6306]
[1728540834979,7.1103,140.64,140.58,24.8961]
[1728540835184,7.36128,140.64,140.58,24.8961]
[1728540837107,7.23579,140.64,140.58,24.8961]
[1728540838213,0.12549,140.63,140.55,17.7866]
[1728540838517,0.12549,140.61,140.53,15.0249]
[1728540838691,7.1143,140.57,140.53,15.0249]
[1728540839312,0.12549,140.58,140.53,22.1406]
[1728540842217,7.1132,140.59,140.53,22.1406]
[1728540842715,0.12549,140.58,140.53,15.0249]
[1728540843216,7.23929,140.58,140.53,15.0249]
[1728540843404,7.1143,140.57,140.52,17.7907]
[1728540843711,7.1151,140.55,140.5,20.0]
[1728540843913,7.1144,140.56,140.5,27.1172]
[1728540844797,0.12549,140.58,140.5,20.0]
[1728540844997,7.1139,140.57,140.51,7.1167]
[1728540845507,7.1139,140.57,140.52,7.1164]
[1728540849518,7.23889,140.58,140.53,7.1157]
[1728540850030,27.43070923,140.6,140.54,1.4229887]
[1728540850325,7.1129,140.59,140.54,1.4229887]
[1728540850505,7.1129,140.59,140.53,7.1154]
[1728540851605,24.027864,140.6,140.52,15.4531]
[1728540851798,7.1142,140.57,140.52,15.4531]
[1728540852014,7.1145,140.56,140.52,15.4531]
[1728540853045,7.1145,140.56,140.51,24.908]
[1728540853046,37.7834,140.59,140.49,29.0]
[1728540853349,24.027864,140.56,140.49,15.6367]
[1728540853516,7.1175,140.5,140.45,41.03252668]
[1728540854646,7.1179,140.49,140.45,22.165]
[1728540854811,7.1179,140.49,140.45,15.9449]
[1728540857315,7.1174,140.5,140.45,15.9449]
[1728540865343,7.1174,140.5,140.46,1.42372052]
[1728540865935,7.1174,140.5,140.45,23.0647]
[1728540866836,7.1169,140.52,140.47,7.1188]
[1728540867047,7.1169,140.52,140.48,1.42356339]
[1728540868040,7.1169,140.52,140.47,7.1188]
[1728540868625,7.1169,140.52,140.48,1.42351517]
[1728540869126,7.1169,140.52,140.47,7.1188]
[1728540874149,7.1169,140.52,140.48,1.42352208]
[1728540874458,7.1169,140.52,140.47,7.1188]
[1728540874953,7.1169,140.52,140.47,8.54232352]
[1728540875247,7.1169,140.52,140.47,7.1188]
[1728540875951,7.1159,140.53,140.48,8.54172214]
[1728540877333,7.1159,140.53,140.48,7.1182]
[1728540877629,7.1159,140.53,140.49,1.42339551]
[1728540878127,7.1159,140.53,140.48,7.1182]
[1728540878539,7.1155,140.54,140.49,7.1178]
[1728540879541,7.1159,140.53,140.48,7.1183]
[1728540881638,23.902374,140.56,140.46,94.1347]
[1728540881639,23.902374,140.56,140.46,76.3369]
[1728540881842,7.1155,140.54,140.49,7.1174]
[1728540882142,7.1159,140.53,140.49,7.1174]
[1728540882656,7.1155,140.54,140.49,7.1174]
[1728540882859,7.1152,140.55,140.5,7.1173]
[1728540885763,27.23999,140.56,140.51,7.1167]
[1728540885945,7.1149,140.55,140.5,17.7931]
[1728540886261,7.1149,140.55,140.5,24.9103]
[1728540887860,7.1149,140.55,140.5,17.7931]
[1728540888052,7.1149,140.55,140.51,7.1169]
[1728540893353,7.41115699,140.58,140.52,8.53930846]
[1728540893546,7.1139,140.57,140.52,8.53930846]
[1728540893760,7.41437174,140.6,140.52,1.42300846]
[1728540893967,7.1134,140.58,140.53,24.9054]
[1728540895674,7.1139,140.57,140.53,24.9054]
[1728540896659,7.1135,140.58,140.54,1.4229406]
[1728540898273,7.1129,140.59,140.54,8.5381406]
[1728540899956,7.1124,140.6,140.55,7.1146]
[1728540900175,7.1124,140.6,140.56,1.42265748]
[1728540900564,7.1124,140.6,140.55,7.1146]
[1728540901389,7.1129,140.59,140.55,7.1146]
[1728540902277,7.1134,140.58,140.54,6.4384]
[1728540905679,7.1134,140.58,140.54,13.5537]
[1728540905869,7.1134,140.58,140.54,14.97651942]
[1728540906072,7.1134,140.58,140.54,13.5537]
[1728540906467,7.41397767,140.63,140.55,19.20961634]
[1728540906663,14.52517767,140.63,140.58,7.1133]
[1728540906856,7.1104,140.64,140.59,8.53504792]
[1728540907463,7.1104,140.64,140.59,7.1127]
[1728540907679,24.70362761,140.67,140.59,7.1127]
[1728540907854,7.111,140.63,140.59,7.1127]
[1728540909979,24.70362761,140.67,140.54,22.6859]
[1728540909980,0.12549,140.62,140.54,22.6859]
[1728540910186,0.12549,140.62,140.54,47.5886]
[1728540910187,7.1129,140.59,140.54,47.5886]
[1728540910490,7.1129,140.59,140.55,7.1148]
[1728540910667,7.1124,140.6,140.55,7.1148]
[1728540913560,7.1124,140.6,140.56,7.1142]
[1728540916999,23.902374,140.63,140.55,7.1148]
[1728540917314,7.113,140.59,140.55,7.1148]
[1728540918487,7.1143,140.57,140.54,22.6859]
[1728540918660,7.113,140.59,140.54,29.8012]
[1728540919568,7.113,140.59,140.55,7.1146]
[1728540920365,7.1134,140.58,140.54,31.22375886]
[1728540921595,24.027864,140.61,140.54,31.22375886]
[1728540921893,7.36328,140.61,140.55,7.1147]
[1728540922102,0.12549,140.61,140.56,1.42272011]
[1728540922402,7.1125,140.6,140.56,8.53702011]
[1728540923099,7.1125,140.6,140.56,7.1143]
[1728540924371,7.1117,140.62,140.56,17.7857]
[1728540924680,7.1117,140.62,140.57,1.42247761]
[1728540925084,7.1109,140.63,140.59,7.1128]
[1728540925483,17.2924,140.67,140.59,7.1128]
[1728540925677,7.1104,140.64,140.59,8.5351321]
[1728540926091,7.1104,140.64,140.59,7.1128]
[1728540927003,7.1109,140.63,140.59,7.1128]
[1728540931281,0.12549,140.65,140.58,17.7828]
[1728540931486,7.1117,140.62,140.58,17.7828]
[1728540932406,7.1117,140.62,140.58,24.8959]
[1728540932799,7.1107,140.64,140.59,7.1127]
[1728540933313,7.1112,140.63,140.58,24.896]
[1728540934417,7.1112,140.63,140.58,17.7828]
[1728540934580,41.676274,140.66,140.59,7.1128]
[1728540934781,7.1104,140.64,140.58,17.7828]
[1728540935016,7.1104,140.64,140.6,7.1122]
[1728540936301,23.902374,140.66,140.58,17.7828]
[1728540936511,7.1109,140.63,140.59,7.1128]
[1728540937998,7.1103,140.64,140.59,7.1128]
[1728540946408,7.111,140.63,140.59,7.1128]
[1728540956541,7.1115,140.62,140.58,24.896]
[1728540961331,7.111,140.63,140.58,24.896]
[1728540963716,7.1104,140.64,140.59,1.42243852]
[1728540965414,7.1104,140.64,140.6,7.1122]
[1728540967006,7.1104,140.64,140.59,7.1127]
[1728540968926,7.1104,140.64,140.6,7.1121]
[1728540974449,63.00384872,140.66,140.62,7.1112]
[1728540974450,35.40068083,140.66,140.62,7.1112]
[1728540974625,12.79998705,140.66,140.62,7.1112]
[1728540974819,7.1092,140.67,140.62,7.1112]
[1728540979033,7.1092,140.67,140.63,1.42203519]
[1728540979223,7.1092,140.67,140.63,8.53283519]
[1728540979421,7.1084,140.68,140.63,8.53283519]
[1728540980546,7.1079,140.69,140.64,7.11]
[1728540984131,7.40288834,140.7,140.65,1.42183357]
[1728540984132,0.12549,140.7,140.65,1.42183357]
[1728540984450,7.23289,140.7,140.65,7.1097]
[1728540984626,7.23289,140.7,140.65,8.5314438]
[1728540985020,7.23289,140.7,140.65,7.94218417]
[1728540985433,7.1074,140.7,140.65,7.94218417]
[1728540987750,7.1074,140.7,140.65,6.52044037]
[1728540994447,7.1074,140.7,140.66,1.421633]
[1728540995227,7.52841696,140.72,140.66,1.421633]
[1728540995445,0.12549,140.71,140.66,7.1089]
[1728540995751,7.1084,140.68,140.64,24.8855]
[1728540996448,0.12549,140.71,140.64,17.7753]
[1728540996755,7.1078,140.69,140.65,7.1098]
[1728541004049,7.1078,140.69,140.64,24.8855]
[1728541007261,7.1084,140.68,140.64,24.8855]
[1728541007954,7.1084,140.68,140.64,17.7753]
[1728541009458,7.1084,140.68,140.64,24.8856]
[1728541015774,23.902374,140.71,140.64,24.8856]
[1728541015949,7.1079,140.69,140.65,7.1096]
[1728541018445,7.1079,140.69,140.64,24.8855]
[1728541028577,7.1074,140.7,140.65,7.1096]
[1728541028880,7.1074,140.7,140.65,8.53142443]
[1728541030486,12.78861063,140.72,140.7,7.1072]
[1728541030782,0.8406203,140.73,140.7,17.7676]
[1728541030982,0.8406203,140.73,140.7,24.8745]
[1728541031158,0.8406203,140.73,140.7,17.7676]
[1728541031356,0.8406203,140.73,140.71,7.1068]
[1728541031669,0.8406203,140.73,140.7,24.8747]
[1728541036575,7.9464203,140.73,140.68,7.1079]
[1728541038175,0.8406203,140.73,140.67,33.7348]
[1728541038367,7.1063,140.72,140.68,1.4215121]
[1728541038570,7.9464203,140.73,140.68,8.5294121]
[1728541038878,7.9464203,140.73,140.69,1.42136655]
[1728541039179,7.9464203,140.73,140.68,7.1079]
[1728541040583,0.8406203,140.73,140.69,7.1077]
[1728541040959,0.8406203,140.73,140.67,15.9628]
[1728541041181,0.8406203,140.73,140.7,7.1069]
[1728541041489,0.8406203,140.73,140.69,24.8762]
[1728541043194,7.9465203,140.73,140.69,24.8762]
[1728541044079,0.8406203,140.73,140.71,17.7664]
[1728541044389,0.8406203,140.73,140.72,8.52737866]
[1728541044783,0.8406203,140.73,140.71,24.8731]
[1728541045093,0.8406203,140.73,140.72,1.42110369]
[1728541045494,0.8406203,140.73,140.72,8.52740369]
[1728541046678,0.8406203,140.73,140.72,24.10700369]
[1728541048076,0.8406203,140.73,140.72,39.10370955]
[1728541048995,0.8406203,140.73,140.72,133.00573566]
[1728541049373,0.8406203,140.73,140.72,153.00573566]
[1728541049588,0.8406203,140.73,140.72,151.58497986]
[1728541050395,2.03e-05,140.73,140.72,151.58497986]
[1728541051470,2.03e-05,140.73,140.72,160.48193063]
[1728541052368,2.03e-05,140.73,140.72,145.35973477]
[1728541052597,2.03e-05,140.73,140.72,151.58497986]
[1728541053869,2.03e-05,140.73,140.72,66.588274]
[1728541054071,2.03e-05,140.73,140.72,66.462784]
[1728541054697,2.03e-05,140.73,140.72,136.462784]
[1728541056083,2.03e-05,140.73,140.72,42.6859]
[1728541057690,2.03e-05,140.73,140.72,51.45736077]
[1728541058577,2.03e-05,140.73,140.72,67.87481021]
[1728541061117,2.03e-05,140.73,140.72,51.45736077]
[1728541061410,2.03e-05,140.73,140.72,52.87810428]
[1728541062112,2.03e-05,140.73,140.72,31.45736077]
[1728541062309,2.03e-05,140.73,140.72,52.87810266]
[1728541065111,2.03e-05,140.73,140.72,161.65169252]
[1728541065327,2.03e-05,140.73,140.72,160.23095063]
[1728541066997,2.03e-05,140.73,140.72,145.23424477]
[1728541067395,2.03e-05,140.73,140.72,51.45736077]
[1728541069504,2.03e-05,140.73,140.72,52.87809129]
[1728541069819,2.03e-05,140.73,140.72,51.45736077]
[1728541073223,2.03e-05,140.73,140.72,52.87816013]
[1728541073439,2.03e-05,140.73,140.72,51.45736077]
[1728541074729,2.03e-05,140.73,140.72,42.6859]
[1728541077228,2.03e-05,140.73,140.72,7.1063]
[1728541082914,2.03e-05,140.73,140.71,24.8732]
[1728541083317,2.03e-05,140.73,140.69,7.1076]
[1728541083525,0.12549,140.72,140.69,7.1076]
[1728541084137,24.027864,140.72,140.69,7.1076]
[1728541085320,24.027864,140.72,140.7,7.1071]
[1728541087309,0.12549,140.72,140.71,7.1068]
[1728541093437,0.25098,140.72,140.68,17.7704]
[1728541093821,0.12549,140.7,140.68,17.7704]
[1728541095631,24.027864,140.7,140.68,17.7704]
[1728541099753,24.027864,140.7,140.68,24.8783]
[1728541101144,24.027864,140.7,140.68,17.7704]
[1728541101530,24.027864,140.7,140.68,24.8784]
[1728541108141,0.25098,140.7,140.68,24.8784]
[1728541108455,11.2352,140.71,140.69,7.1078]
[1728541108456,24.027864,140.71,140.69,7.1078]
[1728541109744,24.027864,140.71,140.68,17.7704]
[1728541110049,24.027864,140.71,140.68,24.8786]
[1728541111253,24.027864,140.71,140.68,17.7704]
[1728541111556,31.135964,140.69,140.65,17.7745]
[1728541111856,24.027864,140.67,140.65,7.1097]
[1728541118379,0.25098,140.67,140.65,7.1097]
[1728541118571,0.25098,140.67,140.64,24.8855]
[1728541118772,0.25098,140.67,140.61,40.7915]
[1728541118969,24.027864,140.65,140.61,33.6801]
[1728541119280,24.027864,140.65,140.62,7.1113]
[1728541120054,24.027864,140.66,140.62,7.1113]
[1728541120677,31.137264,140.66,140.62,7.1113]
[1728541120860,24.027864,140.66,140.62,7.1113]
[1728541122256,0.12549,140.67,140.61,35.10244654]
[1728541122466,0.12549,140.67,140.61,33.6801]
[1728541122661,0.12549,140.67,140.61,15.901]
[1728541122971,20.12549,140.68,140.64,7.1103]
[1728541123665,23.902374,140.67,140.64,7.1103]
[1728541124959,23.902374,140.67,140.63,17.7766]
[1728541125157,0.12549,140.66,140.63,17.7766]
[1728541125476,0.12549,140.66,140.63,24.8871]
[1728541136784,0.12549,140.66,140.64,7.11]
[1728541136966,23.902374,140.67,140.64,7.11]
[1728541137306,23.902374,140.67,140.63,17.7766]
[1728541137583,20.0,140.68,140.65,17.7739]
[1728541137787,20.0,140.68,140.66,7.1092]
[1728541137959,7.1074,140.7,140.66,7.1092]